fUSD/lending_fUSD_20250823
["ID","MTS","AMOUNT","RATE_DAILY","PERIOD"]
[381048305,1755972674285,-151.0,0.00023,7]
[381048306,1755972674296,-151.0,0.00023,7]
[381048307,1755972674306,-151.0,0.00023,7]
[381048308,1755972674316,-151.0,0.00023,7]
[381048309,1755972674327,-151.0,0.00023,7]
[381048310,1755972674336,-706.594631,0.00023,7]
[381048311,1755972674346,-278.64932,0.00023,7]
[381048312,1755972674356,-151.0,0.00023,7]
[381048313,1755972674366,-706.594631,0.00023,7]
[381048314,1755972674376,-706.594631,0.00023,7]
[381048315,1755972674386,-706.594631,0.00023,7]
[381048316,1755972674398,-615.248004,0.00023,7]
[381048317,1755972674408,-151.0,0.00023,7]
[381048318,1755972674420,-615.248004,0.00023,7]
[381048319,1755972674431,-151.0,0.00023,7]
[381048320,1755972674442,-615.248004,0.00023,7]
[381048321,1755972674453,-151.0,0.00023,7]
[381048322,1755972674463,-615.248004,0.00023,7]
[381048323,1755972674474,-1348.245914,0.00023,7]
[381048324,1755972674485,-2586.891149,0.00023,7]
[381048325,1755972674495,-1348.245914,0.00023,7]
[381048326,1755972674505,-2586.891149,0.00023,7]
[381048327,1755972674516,-1348.245914,0.00023,7]
[381048328,1755972674527,-2586.891149,0.00023,7]
[381048329,1755972674537,-1348.245914,0.00023,7]
[381048330,1755972674547,-450.0,0.00023,2]
[381048331,1755972674558,-2586.891149,0.00023,7]
[381048332,1755972674568,-1466.793809,0.00023,7]
[381048333,1755972674578,-1466.793809,0.00023,7]
[381048334,1755972674588,-1466.793809,0.00023,7]
[381048335,1755972674598,-173.232404,0.00023,7]
[381048336,1755972674608,-151.0,0.00023,7]
[381048337,1755972674618,-1466.793809,0.00023,7]
[381048338,1755972674627,-173.232404,0.00023,7]
[381048339,1755972674638,-151.0,0.00023,7]
[381048340,1755972674647,-151.0,0.00023,7]
[381048341,1755972674658,-173.232404,0.00023,7]
[381048342,1755972674668,-151.0,0.00023,7]
[381048343,1755972674679,-173.232404,0.00023,7]
[381048344,1755972674690,-176.347383,0.00023,7]
[381048345,1755972674700,-289.987289,0.00023,7]
[381048346,1755972674710,-160.0,0.00023,3]
[381048347,1755972674719,-176.347383,0.00023,7]
[381048348,1755972674730,-151.0,0.00023,7]
[381048349,1755972674741,-289.987289,0.00023,7]
[381048350,1755972674750,-151.0,0.00023,7]
[381048351,1755972674760,-176.347383,0.00023,7]
[381048352,1755972674769,-289.987289,0.00023,7]
[381048353,1755972674779,-176.347383,0.00023,7]
[381048354,1755972674789,-151.0,0.00023,7]
[381048355,1755972674799,-151.0,0.00023,7]
[381048356,1755972674809,-151.0,0.00023,7]
[381048357,1755972674821,-289.987289,0.00023,7]
[381048358,1755972674831,-1261.0,0.00023,7]
[381048359,1755972674840,-161.0,0.00023,7]
[381048360,1755972674850,-500.0,0.00023014,2]
[381048361,1755972674860,-194.72792766,0.00023014,2]
[381048362,1755972674870,-300.0,0.000231,7]
[381048363,1755972674880,-500.0,0.00023122,2]
[381048364,1755972674890,-169.83545028,0.00023142,2]
[381048365,1755972674900,-985.0,0.00023142,2]
[381048366,1755972674910,-572.0,0.00023142,2]
[381048367,1755972674920,-2500.0,0.00023164,2]
[381048368,1755972674930,-2466.39634687,0.00023164,2]
[381048369,1755972674940,-931.67247144,0.00023233,2]
[381048370,1755972674950,-600.0,0.0002326,2]
[381048371,1755972674960,-1261.0,0.00023288,7]
[381048372,1755972674970,-500.0,0.00023288,2]
[381048373,1755972674981,-500.0,0.00023291,2]
[381048374,1755972674990,-339.0,0.000233,2]
[381048375,1755972675000,-3662.16,0.00023305,2]
[381048376,1755972675011,-166.06,0.00023344,2]
[381048377,1755972675021,-166.06,0.00023344,2]
[381048378,1755972675031,-347.34,0.00023345,2]
[381048379,1755972675042,-3624.55905506,0.000234,4]
[381048380,1755972675053,-3624.55905506,0.000234,4]
[381048381,1755972675064,-3624.55905506,0.000234,4]
[381048382,1755972675074,-3624.55905506,0.000234,4]
[381048383,1755972675084,-3624.55905506,0.000234,4]
[381048384,1755972675094,-3624.55905506,0.000234,4]
[381048385,1755972675104,-3624.55905506,0.000234,4]
[381048386,1755972675382,-3624.55905506,0.000234,4]
[381048387,1755972675392,-3624.55905506,0.000234,4]
[381048388,1755972675402,-3624.55905506,0.000234,4]
[381048389,1755972675412,-3624.55905506,0.000234,4]
[381048390,1755972675422,-3624.55905506,0.000234,4]
[381048391,1755972675431,-3624.55905506,0.000234,4]
[381048392,1755972675441,-3624.55905506,0.000234,4]
[381048393,1755972675451,-3624.55905506,0.000234,4]
[381048394,1755972675461,-3624.55905506,0.000234,4]
[381048395,1755972675471,-3624.55905506,0.000234,4]
[381048396,1755972675480,-3624.55905506,0.000234,4]
[381048397,1755972675491,-3624.55905506,0.000234,4]
[381048398,1755972675501,-3624.55,0.000234,4]
[381048399,1755972675511,-8457.3044618,0.000234,4]
[381048400,1755972675520,-8457.3044618,0.000234,4]
[381048401,1755972675530,-8457.3044618,0.000234,4]
[381048402,1755972675540,-2927.1066584,0.000234,4]
[381048403,1755972675550,-2927.1066584,0.000234,4]
[381048404,1755972675560,-2927.1066584,0.000234,4]
[381048405,1755972675571,-2927.1066584,0.000234,4]
[381048406,1755972675580,-2927.1066584,0.000234,4]
[381048407,1755972675590,-2927.1066584,0.000234,4]
[381048408,1755972675599,-2927.1066584,0.000234,4]
[381048409,1755972675609,-2927.1066584,0.000234,4]
[381048410,1755972675619,-2927.1066584,0.000234,4]
[381048411,1755972675628,-2927.1066584,0.000234,4]
[381048412,1755972675637,-2927.1066584,0.000234,4]
[381048413,1755972675647,-2927.1066584,0.000234,4]
[381048414,1755972675656,-2927.1066584,0.000234,4]
[381048415,1755972675667,-2927.1066584,0.000234,4]
[381048416,1755972675677,-2927.1066584,0.000234,4]
[381048417,1755972675688,-2927.1066584,0.000234,4]
[381048418,1755972675697,-2927.1066584,0.000234,4]
[381048419,1755972675708,-2927.1066584,0.000234,4]
[381048420,1755972675717,-2927.1066584,0.000234,4]
[381048421,1755972675726,-2927.1,0.000234,4]
[381048422,1755972675735,-6829.91553627,0.000234,4]
[381048423,1755972675745,-6829.91553627,0.000234,4]
[381048424,1755972675754,-6829.91553627,0.000234,4]
[381048425,1755972675764,-2362.84933468,0.000234,4]
[381048426,1755972675773,-2362.84933468,0.000234,4]
[381048427,1755972675782,-2362.84933468,0.000234,4]
[381048428,1755972675791,-2362.84933468,0.000234,4]
[381048429,1755972675800,-2362.84933468,0.000234,4]
[381048430,1755972675810,-2362.84933468,0.000234,4]
[381048431,1755972675819,-2362.84933468,0.000234,4]
[381048432,1755972675828,-2362.84933468,0.000234,4]
[381048433,1755972675838,-2362.84933468,0.000234,4]
[381048434,1755972675848,-2362.84933468,0.000234,4]
[381048435,1755972675858,-2362.84933468,0.000234,4]
[381048436,1755972675867,-2362.84933468,0.000234,4]
[381048437,1755972675877,-2362.84933468,0.000234,4]
[381048438,1755972675887,-2362.84933468,0.000234,4]
[381048439,1755972675896,-2362.84933468,0.000234,4]
[381048440,1755972675906,-2362.84933468,0.000234,4]
[381048441,1755972675916,-2362.84933468,0.000234,4]
[381048442,1755972675925,-2362.84933468,0.000234,4]
[381048443,1755972675934,-2362.84933468,0.000234,4]
[381048444,1755972675944,-2362.84,0.000234,4]
[381048445,1755972675954,-5513.31511426,0.000234,4]
[381048446,1755972675963,-5513.31511426,0.000234,4]
[381048447,1755972675974,-5513.31511426,0.000234,4]
[381048448,1755972675983,-985.0,0.00023416,2]
[381048449,1755972675993,-572.0,0.00023416,2]
[381048450,1755972676002,-8457.3044618,0.00023436,4]
[381048451,1755972676012,-6829.91553627,0.00023436,4]
[381048452,1755972676022,-5513.31511426,0.00023436,4]
[381048453,1755972676032,-500.0,0.00023495,2]
[381048454,1755972676045,-10331.89734918,0.00023499,2]
[381048455,1755972676055,-6846.99840111,0.000235,2]
[381048456,1755972676065,-200.0,0.0002351,7]
[381048457,1755972676075,-1261.0,0.00023562,7]
[381048458,1755972676086,-622.08313299,0.00023562,2]
[381048459,1755972676095,-201.93286099,0.00023562,2]
[381048460,1755972676105,-180.05368349,0.00023629,2]
[381048461,1755972676116,-580.63962718,0.00023649,2]
[381048462,1755972676126,-1000.0,0.00023679,2]
[381048463,1755972676137,-500.0,0.00023679,2]
[381048464,1755972676147,-985.0,0.0002369,2]
[381048465,1755972676157,-572.0,0.0002369,2]
[381048466,1755972676168,-4743.48,0.000237,7]
[381048467,1755972676177,-931.67247144,0.000237,2]
[381048468,1755972676187,-500.0,0.00023712,2]
[381048469,1755972676196,-8457.3044618,0.00023715,4]
[381048470,1755972676206,-6829.91553627,0.00023715,4]
[381048471,1755972676216,-5513.31511426,0.00023715,4]
[381048472,1755972676226,-800.28,0.00023726,2]
[381048473,1755972676236,-666.0,0.00023799,2]
[381048474,1755972676245,-300.0,0.00023799,2]
[381048475,1755972676255,-300.0,0.00023799,2]
[381048476,1755972676265,-493.35,0.000238,2]
[381048477,1755972676275,-195640.09959905,0.000238,7]
[381048478,1755972676284,-1000.0,0.000238,6]
[381048479,1755972676294,-134895.615216,0.000238,7]
[381048480,1755972676304,-151.0,0.000238,7]
[381048481,1755972676314,-151.0,0.000238,7]
[381048482,1755972676323,-151.0,0.000238,7]
[381048483,1755972676333,-151.0,0.000238,7]
[381048484,1755972676344,-151.0,0.000238,7]
[381048485,1755972676353,-151.987438,0.000238,7]
[381048486,1755972676363,-151.0,0.000238,7]
[381048487,1755972676372,-299.663621,0.000238,7]
[381048488,1755972676384,-151.0,0.000238,7]
[381048489,1755972676393,-151.0,0.000238,7]
[381048490,1755972676403,-600.0,0.00023808,2]
[381048491,1755972676412,-1261.0,0.00023836,7]
[381048492,1755972676422,-500.0,0.00023868,2]
[381048493,1755972676432,-985.0,0.00023964,2]
[381048494,1755972676441,-572.0,0.00023964,2]
[381048495,1755972676451,-150.0,0.00023973,2]
[381048496,1755972676462,-8457.3044618,0.00023994,4]
[381048497,1755972676472,-6829.91553627,0.00023994,4]
[381048498,1755972676482,-5513.31511426,0.00023994,4]
[381048499,1755972676492,-300.0,0.00023999,2]
[381048500,1755972676501,-300.0,0.00023999,2]
[381048501,1755972676511,-300.0,0.00023999,2]
[381048502,1755972676522,-666.0,0.00023999,2]
[381048503,1755972676532,-300.0,0.00023999,2]
[381048504,1755972676542,-300.0,0.00023999,2]
[381048505,1755972676551,-300.0,0.00023999,2]
[381048506,1755972676560,-300.0,0.00023999,2]
[381048507,1755972676570,-300.0,0.00023999,2]
[381048508,1755972676580,-1858.5319536,0.00024,25]
[381048509,1755972676590,-60605.91981797,0.00024,2]
[381048510,1755972676599,-10069.38483176,0.00024,14]
[381048511,1755972676609,-250.07056841,0.00024,2]
[381048512,1755972676619,-160.0,0.00024,7]
[381048513,1755972676628,-844.27675029,0.00024,7]
[381048514,1755972676638,-844.27675029,0.00024,7]
[381048515,1755972676647,-2808.24,0.00024,2]
[381048516,1755972676658,-844.27675029,0.00024,7]
[381048517,1755972676668,-159.6,0.00024,2]
[381048518,1755972676678,-114218.81,0.00024,7]
[381048519,1755972676688,-2975.65782103,0.00024,3]
[381048520,1755972676697,-151.0,0.00024,7]
[381048521,1755972676707,-151.0,0.00024,7]
[381048522,1755972676716,-151.0,0.00024,7]
[381048523,1755972676725,-151.0,0.00024,7]
[381048524,1755972676735,-151.0,0.00024,7]
[381048525,1755972676744,-151.0,0.00024,7]
[381048526,1755972676753,-151.0,0.00024,7]
[381048527,1755972676763,-151.0,0.00024,7]
[381048528,1755972676772,-151.0,0.00024,7]
[381048529,1755972676782,-151.0,0.00024,7]
[381048530,1755972676792,-151.0,0.00024,7]
[381048531,1755972676801,-151.0,0.00024,7]
[381048532,1755972676811,-151.0,0.00024,7]
[381048533,1755972676820,-151.0,0.00024,7]
[381048534,1755972676830,-151.0,0.00024,7]
[381048535,1755972676839,-151.0,0.00024,7]
[381048536,1755972676848,-151.0,0.00024,7]
[381048537,1755972676858,-151.0,0.00024,7]
[381048538,1755972676868,-151.0,0.00024,7]
[381048539,1755972676878,-173.919326,0.00024,7]
[381048540,1755972676887,-151.0,0.00024,7]
[381048541,1755972676897,-151.0,0.00024,7]
[381048542,1755972676906,-706.594631,0.00024,7]
[381048543,1755972676916,-151.0,0.00024,7]
[381048544,1755972676927,-706.594631,0.00024,7]
[381048545,1755972676936,-706.594631,0.00024,7]
[381048546,1755972676946,-706.594628,0.00024,7]
[381048547,1755972676955,-615.248004,0.00024,7]
[381048548,1755972676964,-270.487828,0.00024,7]
[381048549,1755972676974,-615.248004,0.00024,7]
[381048550,1755972676984,-151.0,0.00024,7]
[381048551,1755972676993,-615.248004,0.00024,7]
[381048552,1755972677003,-151.0,0.00024,7]
[381048553,1755972677013,-615.248011,0.00024,7]
[381048554,1755972677022,-1348.245914,0.00024,7]
[381048555,1755972677032,-2586.891149,0.00024,7]
[381048556,1755972677043,-1348.245914,0.00024,7]
[381048557,1755972677054,-2586.891149,0.00024,7]
[381048558,1755972677063,-1348.245914,0.00024,7]
[381048559,1755972677073,-2586.891149,0.00024,7]
[381048560,1755972677083,-1348.245918,0.00024,7]
[381048561,1755972677093,-1466.793809,0.00024,7]
[381048562,1755972677103,-2586.891154,0.00024,7]
[381048563,1755972677113,-1466.793809,0.00024,7]
[381048564,1755972677123,-1466.793809,0.00024,7]
[381048565,1755972677132,-173.232404,0.00024,7]
[381048566,1755972677141,-151.0,0.00024,7]
[381048567,1755972677150,-1466.793806,0.00024,7]
[381048568,1755972677160,-173.232404,0.00024,7]
[381048569,1755972677170,-151.0,0.00024,7]
[381048570,1755972677179,-173.232404,0.00024,7]
[381048571,1755972677189,-151.0,0.00024,7]
[381048572,1755972677199,-151.0,0.00024,7]
[381048573,1755972677209,-173.232412,0.00024,7]
[381048574,1755972677218,-176.347383,0.00024,7]
[381048575,1755972677228,-289.987289,0.00024,7]
[381048576,1755972677237,-160.0,0.00024,7]
[381048577,1755972677247,-176.347383,0.00024,7]
[381048578,1755972677258,-151.0,0.00024,7]
[381048579,1755972677267,-289.987289,0.00024,7]
[381048580,1755972677277,-176.347383,0.00024,7]
[381048581,1755972677287,-289.987289,0.00024,7]
[381048582,1755972677296,-176.347376,0.00024,7]
[381048583,1755972677306,-151.0,0.00024,7]
[381048584,1755972677315,-151.0,0.00024,7]
[381048585,1755972677325,-151.0,0.00024,7]
[381048586,1755972677334,-289.987297,0.00024,7]
[381048587,1755972677344,-202.562917,0.00024,7]
[381048588,1755972677354,-202.562917,0.00024,7]
[381048589,1755972677363,-202.562917,0.00024,7]
[381048590,1755972677372,-202.562917,0.00024,7]
[381048591,1755972677382,-661.523033,0.00024,7]
[381048592,1755972677391,-151.0,0.00024,7]
[381048593,1755972677401,-661.523033,0.00024,7]
[381048594,1755972677411,-151.0,0.00024,7]
[381048595,1755972677421,-151.0,0.00024,7]
[381048596,1755972677431,-661.523033,0.00024,7]
[381048597,1755972677440,-151.0,0.00024,7]
[381048598,1755972677450,-661.523032,0.00024,7]
[381048599,1755972677459,-151.0,0.00024,7]
[381048600,1755972677468,-971.01112,0.00024,7]
[381048601,1755972677478,-151.0,0.00024,7]
[381048602,1755972677488,-971.01112,0.00024,7]
[381048603,1755972677497,-971.01112,0.00024,7]
[381048604,1755972677506,-395.416713,0.00024,7]
[381048605,1755972677515,-971.011127,0.00024,7]
[381048606,1755972677524,-395.416713,0.00024,7]
[381048607,1755972677534,-395.416713,0.00024,7]
[381048608,1755972677543,-151.0,0.00024,7]
[381048609,1755972677552,-395.416714,0.00024,7]
[381048610,1755972677562,-405.480139,0.00024,7]
[381048611,1755972677572,-405.480139,0.00024,7]
[381048612,1755972677582,-405.480139,0.00024,7]
[381048613,1755972677591,-833.269058,0.00024,7]
[381048614,1755972677601,-405.480134,0.00024,7]
[381048615,1755972677611,-833.269058,0.00024,7]
[381048616,1755972677620,-833.269058,0.00024,7]
[381048617,1755972677629,-833.26906,0.00024,7]
[381048618,1755972677639,-545.828536,0.00024,7]
[381048619,1755972677648,-219.164289,0.00024,7]
[381048620,1755972677657,-545.828536,0.00024,7]
[381048621,1755972677667,-219.164289,0.00024,7]
[381048622,1755972677782,-545.828536,0.00024,7]
[381048623,1755972677792,-219.164289,0.00024,7]
[381048624,1755972677801,-545.828529,0.00024,7]
[381048625,1755972677810,-219.164284,0.00024,7]
[381048626,1755972677820,-179.486436,0.00024,7]
[381048627,1755972677829,-151.0,0.00024,7]
[381048628,1755972677839,-179.486436,0.00024,7]
[381048629,1755972677849,-206.680504,0.00024,7]
[381048630,1755972677858,-151.0,0.00024,7]
[381048631,1755972677867,-250.842851,0.00024,7]
[381048632,1755972677877,-151.0,0.00024,7]
[381048633,1755972677886,-179.486436,0.00024,7]
[381048634,1755972677895,-179.486427,0.00024,7]
[381048635,1755972677904,-502.898451,0.00024,7]
[381048636,1755972677913,-502.898451,0.00024,7]
[381048637,1755972677922,-502.898451,0.00024,7]
[381048638,1755972677932,-502.898442,0.00024,7]
[381048639,1755972677941,-159.821228,0.00024,7]
[381048640,1755972677948,-159.821228,0.00024,7]
[381048641,1755972677954,-151.0,0.00024,7]
[381048642,1755972677962,-159.821228,0.00024,7]
[381048643,1755972677969,-159.821229,0.00024,7]
[381048644,1755972677976,-151.0,0.00024,7]
[381048645,1755972677982,-974.845297,0.00024,7]
[381048646,1755972677989,-974.845297,0.00024,7]
[381048647,1755972677995,-974.845297,0.00024,7]
[381048648,1755972678001,-974.8453,0.00024,7]
[381048649,1755972678008,-927.183729,0.00024,7]
[381048650,1755972678014,-927.183729,0.00024,7]
[381048651,1755972678020,-201.228118,0.00024,7]
[381048652,1755972678027,-151.0,0.00024,7]
[381048653,1755972678034,-927.183729,0.00024,7]
[381048654,1755972678044,-201.228118,0.00024,7]
[381048655,1755972678051,-151.0,0.00024,7]
[381048656,1755972678058,-151.0,0.00024,7]
[381048657,1755972678065,-201.228118,0.00024,7]
[381048658,1755972678073,-927.183726,0.00024,7]
[381048659,1755972678083,-151.0,0.00024,7]
[381048660,1755972678090,-151.0,0.00024,7]
[381048661,1755972678097,-151.0,0.00024,7]
[381048662,1755972678103,-201.228126,0.00024,7]
[381048663,1755972678109,-151.0,0.00024,7]
[381048664,1755972678118,-1136.266139,0.00024,7]
[381048665,1755972678126,-151.0,0.00024,7]
[381048666,1755972678132,-151.0,0.00024,7]
[381048667,1755972678138,-1136.266139,0.00024,7]
[381048668,1755972678145,-151.0,0.00024,7]
[381048669,1755972678152,-1136.266139,0.00024,7]
[381048670,1755972678158,-268.022233,0.00024,7]
[381048671,1755972678164,-151.0,0.00024,7]
[381048672,1755972678171,-268.022233,0.00024,7]
[381048673,1755972678180,-1136.266132,0.00024,7]
[381048674,1755972678188,-1719.050751,0.00024,7]
[381048675,1755972678196,-538.25782,0.00024,7]
[381048676,1755972678204,-268.022233,0.00024,7]
[381048677,1755972678213,-251.994799,0.00024,7]
[381048678,1755972678223,-1719.050751,0.00024,7]
[381048679,1755972678233,-268.022233,0.00024,7]
[381048680,1755972678242,-538.25782,0.00024,7]
[381048681,1755972678252,-251.994799,0.00024,7]
[381048682,1755972678262,-1719.050751,0.00024,7]
[381048683,1755972678272,-415.592156,0.00024,7]
[381048684,1755972678282,-538.25782,0.00024,7]
[381048685,1755972678292,-1719.050742,0.00024,7]
[381048686,1755972678302,-415.592156,0.00024,7]
[381048687,1755972678312,-166.909563,0.00024,7]
[381048688,1755972678321,-251.994799,0.00024,7]
[381048689,1755972678330,-538.257822,0.00024,7]
[381048690,1755972678340,-251.994796,0.00024,7]
[381048691,1755972678350,-166.909563,0.00024,7]
[381048692,1755972678359,-415.592156,0.00024,7]
[381048693,1755972678370,-166.909563,0.00024,7]
[381048694,1755972678380,-415.592149,0.00024,7]
[381048695,1755972678391,-166.90956,0.00024,7]
[381048696,1755972678401,-151.0,0.00024,7]
[381048697,1755972678411,-151.0,0.00024,7]
[381048698,1755972678420,-151.0,0.00024,7]
[381048699,1755972678430,-4000.0,0.00024,4]
[381048700,1755972678440,-151.0,0.00024023,7]
[381048701,1755972678450,-151.0,0.00024023,7]
[381048702,1755972678460,-151.0,0.00024023,7]
[381048703,1755972678470,-151.0,0.00024023,7]
[381048704,1755972678479,-151.0,0.00024023,7]
[381048705,1755972678488,-151.0,0.00024023,7]
[381048706,1755972678497,-151.0,0.00024023,7]
[381048707,1755972678507,-637.430262,0.00024023,7]
[381048708,1755972678516,-151.0,0.00024023,7]
[381048709,1755972678526,-637.430262,0.00024023,7]
[381048710,1755972678535,-151.0,0.00024023,7]
[381048711,1755972678544,-637.430262,0.00024023,7]
[381048712,1755972678553,-637.430262,0.00024023,7]
[381048713,1755972678562,-151.0,0.00024023,7]
[381048714,1755972678572,-151.0,0.00024023,7]
[381048715,1755972678581,-151.0,0.00024023,7]
[381048716,1755972678590,-151.0,0.00024023,7]
[381048717,1755972678600,-151.0,0.00024023,7]
[381048718,1755972678609,-151.0,0.00024023,7]
[381048719,1755972678618,-196.177788,0.00024023,7]
[381048720,1755972678628,-196.177788,0.00024023,7]
[381048721,1755972678637,-196.177788,0.00024023,7]
[381048722,1755972678646,-196.177788,0.00024023,7]
[381048723,1755972678656,-300.0,0.00024099,2]
[381048724,1755972678665,-300.0,0.00024099,2]
[381048725,1755972678675,-300.0,0.00024099,2]
[381048726,1755972678684,-5272.35046862,0.000241,2]
[381048727,1755972678694,-200.0,0.000241,7]
[381048728,1755972678704,-240.94727,0.000241,7]
[381048729,1755972678713,-240.94727,0.000241,7]
[381048730,1755972678722,-240.94727,0.000241,7]
[381048731,1755972678732,-240.94727,0.000241,7]
[381048732,1755972678742,-498.173766,0.000241,7]
[381048733,1755972678751,-457.802694,0.000241,7]
[381048734,1755972678760,-498.173766,0.000241,7]
[381048735,1755972678769,-457.802694,0.000241,7]
[381048736,1755972678779,-498.173766,0.000241,7]
[381048737,1755972678788,-457.802694,0.000241,7]
[381048738,1755972678798,-498.173766,0.000241,7]
[381048739,1755972678808,-457.802694,0.000241,7]
[381048740,1755972678817,-1229.467304,0.000241,7]
[381048741,1755972678827,-1229.467304,0.000241,7]
[381048742,1755972678836,-1229.467304,0.000241,7]
[381048743,1755972678846,-151.0,0.000241,7]
[381048744,1755972678856,-1229.467304,0.000241,7]
[381048745,1755972678865,-151.0,0.000241,7]
[381048746,1755972678875,-151.0,0.000241,7]
[381048747,1755972678885,-151.0,0.000241,7]
[381048748,1755972678894,-169.468754,0.000241,7]
[381048749,1755972678904,-169.468754,0.000241,7]
[381048750,1755972678914,-169.468754,0.000241,7]
[381048751,1755972678923,-169.468754,0.000241,7]
[381048752,1755972678934,-151.0,0.000241,7]
[381048753,1755972678944,-2317.04,0.00024109,2]
[381048754,1755972678953,-1261.0,0.0002411,7]
[381048755,1755972678963,-209.40437684,0.0002411,2]
[381048756,1755972678972,-260.52969634,0.00024112,20]
[381048757,1755972678981,-300.0,0.00024131,2]
[381048758,1755972678990,-151.0,0.00024131,7]
[381048759,1755972679000,-151.0,0.00024131,7]
[381048760,1755972679009,-300.0,0.00024131,2]
[381048761,1755972679019,-198.154776,0.00024132,7]
[381048762,1755972679028,-151.0,0.00024132,7]
[381048763,1755972679039,-151.0,0.00024132,7]
[381048764,1755972679052,-151.0,0.00024132,7]
[381048765,1755972679061,-151.0,0.00024132,7]
[381048766,1755972679072,-151.0,0.00024132,7]
[381048767,1755972679082,-4153.0,0.00024132,2]
[381048768,1755972679093,-894.0,0.00024132,2]
[381048769,1755972679102,-1261.0,0.00024164,7]
[381048770,1755972679112,-166.06,0.00024166,2]
[381048771,1755972679124,-166.06,0.00024166,2]
[381048772,1755972679134,-166.06,0.00024166,2]
[381048773,1755972679143,-166.06,0.00024166,2]
[381048774,1755972679152,-166.06,0.00024166,2]
[381048775,1755972679162,-150.0,0.00024171,2]
[381048776,1755972679172,-1185.08,0.00024171,2]
[381048777,1755972679182,-1185.08,0.00024171,2]
[381048778,1755972679192,-539.5,0.00024171,2]
[381048779,1755972679202,-349.07,0.00024171,2]
[381048780,1755972679212,-539.5,0.00024171,2]
[381048781,1755972679222,-1185.08,0.00024171,2]
[381048782,1755972679232,-539.5,0.00024171,2]
[381048783,1755972679241,-1185.08,0.00024171,2]
[381048784,1755972679252,-1185.08,0.00024171,2]
[381048785,1755972679261,-539.5,0.00024171,2]
[381048786,1755972679271,-1064.59,0.00024171,2]
[381048787,1755972679280,-538.02,0.00024171,2]
[381048788,1755972679290,-408.48,0.00024171,2]
[381048789,1755972679300,-19721.86,0.000242,2]
[381048790,1755972679309,-1277.57,0.000242,2]
[381048791,1755972679318,-1263.55,0.000242,2]
[381048792,1755972679328,-412.76820325,0.0002421,2]
[381048793,1755972679337,-3616.72730693,0.0002421,2]
[381048794,1755972679346,-500.0,0.0002422,2]
[381048795,1755972679356,-985.0,0.00024238,2]
[381048796,1755972679365,-572.0,0.00024238,2]
[381048797,1755972679375,-500.0,0.00024241,2]
[381048798,1755972679384,-161.0,0.00024255,7]
[381048799,1755972679394,-320.74051982,0.00024271,2]
[381048800,1755972679403,-8457.3044618,0.00024273,4]
[381048801,1755972679412,-6829.91553627,0.00024273,4]
[381048802,1755972679422,-5513.31511426,0.00024273,4]
[381048803,1755972679432,-600.0,0.00024356,2]
[381048804,1755972679441,-1261.0,0.00024384,7]